[Event "17th Memorial Lezcano Montalvo 2025"]
[Site "Gran Canaria"]
[Date "2025.04.13"]
[Round "2.1"]
[White "Bethencourt Hernandez, Alberto"]
[Black "Alsina Leal, Daniel"]
[Result "0-1"]
[Annotator "ChessBase"]
[ECO "B51"]
[WhiteElo "2122"]
[BlackElo "2496"]
[PlyCount "114"]
[EventDate "2025.04.13"]
[EventType "swiss"]
[EventCountry "ESP"]
[SourceTitle "playchess.com"]
[Source "ChessBase"]
[SourceQuality "1"]
[TimeControl "5400+30"]

1. e4 {[%emt 0:00:03]} c5 {[%emt 0:00:05]} 2. Nf3 {[%emt 0:00:10]} d6 {[%emt 0:00:11]} 3. Bb5+ {[%emt 0:00:46]} Nd7 {[%emt 0:00:11]} 4. O-O {[%emt 0:00:26]} a6 {[%emt 0:00:10]} 5. Bd3 {[%emt 0:00:29]} e6 {[%emt 0:01:26]} 6. c3 {[%emt 0:01:42]} Ngf6 {[%emt 0:00:30]} 7. Re1 {[%emt 0:00:28]} b5 {[%emt 0:01:14]} 8. Bc2 {[%emt 0:00:32]} Be7 {[%emt 0:00:31]} 9. d4 {[%emt 0:01:16]} Bb7 {[%emt 0:00:17]} 10. Bf4 {[%emt 0:02:58]} O-O {[%emt 0:01:59]} 11. a4 {[%emt 0:04:15]} Qc7 {[%emt 0:22:34]} 12. Qe2 {[%emt 0:10:39]} e5 {[%emt 0:13:42]} 13. Bg3 {[%emt 0:08:52]} Nh5 {[%emt 0:04:07]} 14. dxe5 {[%emt 0:04:27]} Nxg3 {[%emt 0:02:48]} 15. hxg3 {[%emt 0:00:39]} dxe5 {[%emt 0:00:21]} 16. axb5 {[%emt 0:03:43]} axb5 {[%emt 0:00:11]} 17. Rxa8 {[%emt 0:09:56]} Rxa8 {[%emt 0:03:16]} 18. Qxb5 {[%emt 0:02:41]} Ba6 {[%emt 0:02:34]} 19. Qb3 {[%emt 0:00:05]} c4 {[%emt 0:07:40]} 20. Qa2 {[%emt 0:01:30]} Bc5 {[%emt 0:16:18]} 21. b4 {[%emt 0:05:46]} Bb6 {[%emt 0:05:38]} 22. Qb2 {[%emt 0:01:23]} Nf6 {[%emt 0:00:55]} 23. Rf1 {[%emt 0:09:15]} Ng4 {[%emt 0:03:46]} 24. Nh2 {[%emt 0:01:26]} Nxh2 {[%emt 0:03:41]} 25. Kxh2 {[%emt 0:00:05]} Rd8 {[%emt 0:01:32]} 26. Bd1 {[%emt 0:02:52]} Qd6 {[%emt 0:01:18]} 27. Be2 {[%emt 0:04:02]} Qh6+ {[%emt 0:02:18]} 28. Kg1 {[%emt 0:00:04]} Qg5 {[%emt 0:00:17]} 29. Qa2 {[%emt 0:03:57]} Bb7 {[%emt 0:01:23]} 30. Qxc4 {[%emt 0:00:26]} Qxg3 {[%emt 0:01:46]} 31. Bf3 {[%emt 0:00:28]} Qg6 {[%emt 0:01:34]} 32. Qe2 {[%emt 0:01:59]} h5 {[%emt 0:01:23]} 33. Re1 {[%emt 0:07:38]} h4 {[%emt 0:00:11]} 34. Bh5 {[%emt 0:01:13]} Qg5 {[%emt 0:00:59]} 35. Qg4 {[%emt 0:01:34]} Qxg4 {[%emt 0:00:41]} 36. Bxg4 {[%emt 0:00:05]} Ra8 {[%emt 0:00:06]} 37. Nd2 {[%emt 0:03:51]} Ra2 {[%emt 0:00:06]} 38. Re2 {[%emt 0:00:10]} Rc2 {[%emt 0:00:49]} 39. Nc4 {[%emt 0:01:30]} Rc1+ {[%emt 0:00:02]} 40. Kh2 {[%emt 0:00:05]} Bc7 {[%emt 0:00:45]} 41. Re3 {[%emt 0:03:29]} Ba6 {[%emt 0:00:12]} 42. Be2 {[%emt 0:00:30]} Rc2 {[%emt 0:01:06]} 43. Kh3 {[%emt 0:01:17]} Bd8 {[%emt 0:00:37]} 44. Bd1 {[%emt 0:02:36]} Rxf2 {[%emt 0:00:41]} 45. Nxe5 {[%emt 0:00:30]} Rd2 {[%emt 0:00:33]} 46. Bb3 {[%emt 0:01:08]} Bc8+ {[%emt 0:00:24]} 47. g4 {[%emt 0:00:16]} hxg3+ {[%emt 0:00:38]} 48. Kxg3 {[%emt 0:00:06]} Bc7 {[%emt 0:00:05]} 49. Bxf7+ {[%emt 0:00:19]} Kf8 {[%emt 0:00:10]} 50. Rf3 {[%emt 0:01:12]} Bxe5+ {[%emt 0:00:06]} 51. Kh4 {[%emt 0:00:02]} Rh2+ {[%emt 0:00:55]} 52. Kg5 {[%emt 0:00:05]} Rg2+ {[%emt 0:01:02]} 53. Kh4 {[%emt 0:00:55]} Bf6+ {[%emt 0:00:30]} 54. Rxf6 {[%emt 0:00:08]} gxf6 {[%emt 0:00:04]} 55. Bd5 {[%emt 0:00:06]} Rg4+ {[%emt 0:00:29]} 56. Kh5 {[%emt 0:00:07]} Rg3 {[%emt 0:00:31]} 57. c4 {[%emt 0:00:06]} Kg7 {[%emt 0:00:09]} 0-1

[Event "17th Memorial Lezcano Montalvo 2025"]
[Site "Gran Canaria"]
[Date "2025.04.13"]
[Round "2.2"]
[White "Kaczur, Florian"]
[Black "Krilovs, Nikolajs"]
[Result "1/2-1/2"]
[Annotator "ChessBase"]
[ECO "A12"]
[WhiteElo "2495"]
[BlackElo "2112"]
[PlyCount "160"]
[EventDate "2025.04.13"]
[EventType "swiss"]
[EventCountry "ESP"]
[SourceTitle "playchess.com"]
[Source "ChessBase"]
[SourceQuality "1"]
[TimeControl "5400+30"]

1. b3 {[%emt 0:00:05]} d5 {[%emt 0:01:56]} 2. Bb2 {[%emt 0:00:07]} Bf5 {[%emt 0:00:29]} 3. Nf3 {[%emt 0:01:11]} e6 {[%emt 0:00:42]} 4. d3 {[%emt 0:01:05]} h6 {[%emt 0:00:50]} 5. g3 {[%emt 0:00:27]} Nf6 {[%emt 0:00:27]} 6. Bg2 {[%emt 0:00:24]} Be7 {[%emt 0:00:39]} 7. O-O {[%emt 0:00:17]} O-O {[%emt 0:00:20]} 8. Nbd2 {[%emt 0:00:54]} a5 {[%emt 0:01:30]} 9. a3 {[%emt 0:03:00]} Nbd7 {[%emt 0:04:50]} 10. c4 {[%emt 0:14:54]} c6 {[%emt 0:03:34]} 11. Rc1 {[%emt 0:01:23]} Re8 {[%emt 0:01:25]} 12. Rc2 {[%emt 0:00:41]} Bh7 {[%emt 0:03:26]} 13. Qa1 {[%emt 0:02:31]} a4 {[%emt 0:12:07]} 14. b4 {[%emt 0:02:20]} c5 {[%emt 0:00:29]} 15. bxc5 {[%emt 0:02:00]} Nxc5 {[%emt 0:00:16]} 16. Ne5 {[%emt 0:17:03]} Bf8 {[%emt 0:11:56]} 17. Qa2 {[%emt 0:03:40]} Ra6 {[%emt 0:04:39]} 18. Rfc1 {[%emt 0:02:39]} d4 {[%emt 0:04:29]} 19. Rb1 {[%emt 0:02:07]} Qd6 {[%emt 0:05:34]} 20. Ndf3 {[%emt 0:06:45]} Nb3 {[%emt 0:01:25]} 21. c5 {[%emt 0:03:00]} Qc7 {[%emt 0:03:14]} 22. Nxd4 {[%emt 0:05:16]} Qxe5 {[%emt 0:01:47]} 23. Nxb3 {[%emt 0:01:19]} axb3 {[%emt 0:01:01]} 24. Qxb3 {[%emt 0:01:33]} Qc7 {[%emt 0:02:24]} 25. Qxb7 {[%emt 0:07:28]} Ra7 {[%emt 0:00:15]} 26. Qxc7 {[%emt 0:00:30]} Rxc7 {[%emt 0:00:06]} 27. Rbc1 {[%emt 0:00:03]} Rec8 {[%emt 0:02:21]} 28. c6 {[%emt 0:00:08]} Bd6 {[%emt 0:00:36]} 29. e4 {[%emt 0:03:23]} Ne8 {[%emt 0:08:15]} 30. a4 {[%emt 0:00:20]} Ra7 {[%emt 0:02:01]} 31. Rc4 {[%emt 0:00:12]} Rca8 {[%emt 0:00:31]} 32. Ra1 {[%emt 0:00:18]} Bc7 {[%emt 0:00:52]} 33. Rb4 {[%emt 0:02:38]} f6 {[%emt 0:01:45]} 34. d4 {[%emt 0:00:44]} Nd6 {[%emt 0:00:45]} 35. e5 {[%emt 0:03:53]} Ba5 {[%emt 0:02:31]} 36. exd6 {[%emt 0:04:18]} Bxb4 {[%emt 0:00:04]} 37. d7 {[%emt 0:00:04]} Ba5 {[%emt 0:02:09]} 38. d5 {[%emt 0:00:32]} exd5 {[%emt 0:01:48]} 39. Bxd5+ {[%emt 0:00:13]} Kh8 {[%emt 0:00:06]} 40. Bd4 {[%emt 0:04:47]} Ra6 {[%emt 0:01:51]} 41. c7 {[%emt 0:01:52]} Bxc7 {[%emt 0:03:37]} 42. Bxa8 {[%emt 0:00:06]} Rxa8 {[%emt 0:00:21]} 43. Rc1 {[%emt 0:00:06]} Bd8 {[%emt 0:00:31]} 44. Rc8 {[%emt 0:00:10]} Be4 {[%emt 0:00:03]} 45. Bb6 {[%emt 0:01:07]} Bb7 {[%emt 0:00:32]} 46. Rxd8+ {[%emt 0:01:05]} Rxd8 {[%emt 0:00:05]} 47. Bxd8 {[%emt 0:00:04]} Bc6 {[%emt 0:00:05]} 48. a5 {[%emt 0:00:03]} Bxd7 {[%emt 0:00:10]} 49. a6 {[%emt 0:00:05]} Kg8 {[%emt 0:00:13]} 50. a7 {[%emt 0:00:05]} Bc6 {[%emt 0:00:04]} 51. Kf1 {[%emt 0:00:04]} Kf7 {[%emt 0:00:14]} 52. Ke2 {[%emt 0:00:05]} Ke6 {[%emt 0:00:32]} 53. Kd3 {[%emt 0:00:11]} f5 {[%emt 0:00:44]} 54. Kd4 {[%emt 0:00:17]} g6 {[%emt 0:00:12]} 55. Ba5 {[%emt 0:01:01]} h5 {[%emt 0:00:13]} 56. Bd2 {[%emt 0:00:38]} Ba8 {[%emt 0:00:19]} 57. Ke3 {[%emt 0:00:55]} Bb7 {[%emt 0:00:14]} 58. Kf4 {[%emt 0:00:20]} Ba8 {[%emt 0:00:22]} 59. Kg5 {[%emt 0:01:01]} Kf7 {[%emt 0:00:08]} 60. f4 {[%emt 0:00:15]} Bb7 {[%emt 0:00:32]} 61. Be1 {[%emt 0:00:10]} Bc6 {[%emt 0:00:49]} 62. h4 {[%emt 0:00:06]} Bf3 {[%emt 0:00:55]} 63. g4 {[%emt 0:00:49]} hxg4 {[%emt 0:00:42]} 64. h5 {[%emt 0:00:18]} gxh5 {[%emt 0:00:09]} 65. Kxf5 {[%emt 0:00:10]} Ke7 {[%emt 0:06:56]} 66. Ke5 {[%emt 0:02:59]} Kf7 {[%emt 0:01:19]} 67. Kf5 {[%emt 0:00:32]} Ke7 {[%emt 0:00:11]} 68. Kg5 {[%emt 0:00:38]} Kf7 {[%emt 0:04:23]} 69. Bg3 {[%emt 0:00:19]} Ke6 {[%emt 0:00:43]} 70. f5+ {[%emt 0:00:54]} Kf7 {[%emt 0:00:18]} 71. Bh4 {[%emt 0:00:25]} Kg7 {[%emt 0:01:12]} 72. Be1 {[%emt 0:01:01]} Kf7 {[%emt 0:00:22]} 73. Bf2 {[%emt 0:01:54]} Kg7 {[%emt 0:00:29]} 74. Bh4 {[%emt 0:01:02]} Kf7 {[%emt 0:00:07]} 75. f6 {[%emt 0:00:06]} Be4 {[%emt 0:00:20]} 76. Kf4 {[%emt 0:00:35]} Bd5 {[%emt 0:00:15]} 77. Kf5 {[%emt 0:00:06]} Bc6 {[%emt 0:00:23]} 78. Kg5 {[%emt 0:00:49]} Be4 {[%emt 0:00:34]} 79. Bf2 {[%emt 0:01:34]} Bf3 {[%emt 0:00:34]} 80. Bh4 {[%emt 0:00:25]} Be4 {[%emt 0:00:07]} 1/2-1/2

[Event "17th Memorial Lezcano Montalvo 2025"]
[Site "Gran Canaria"]
[Date "2025.04.13"]
[Round "2.3"]
[White "Ramirez Maillo, Cristian"]
[Black "Korneev, Oleg"]
[Result "0-1"]
[Annotator "ChessBase"]
[ECO "B22"]
[WhiteElo "2106"]
[BlackElo "2466"]
[PlyCount "54"]
[EventDate "2025.04.13"]
[EventType "swiss"]
[EventCountry "ESP"]
[SourceTitle "playchess.com"]
[Source "ChessBase"]
[SourceQuality "1"]
[TimeControl "5400+30"]

1. e4 {[%emt 0:00:03]} c5 {[%emt 0:00:18]} 2. c3 {[%emt 0:00:06]} d5 {[%emt 0:00:07]} 3. exd5 {[%emt 0:00:07]} Qxd5 {[%emt 0:00:03]} 4. d4 {[%emt 0:00:10]} Nf6 {[%emt 0:00:08]} 5. Nf3 {[%emt 0:00:07]} e6 {[%emt 0:00:06]} 6. Bd3 {[%emt 0:01:43]} Be7 {[%emt 0:01:58]} 7. O-O {[%emt 0:00:10]} O-O {[%emt 0:00:05]} 8. Be3 {[%emt 0:00:29]} Rd8 {[%emt 0:00:16]} 9. Qe2 {[%emt 0:02:34]} Nc6 {[%emt 0:08:26]} 10. a3 {[%emt 0:03:20]} b6 {[%emt 0:02:11]} 11. Rd1 {[%emt 0:00:14]} cxd4 {[%emt 0:11:27]} 12. cxd4 {[%emt 0:00:05]} Bb7 {[%emt 0:00:03]} 13. Nc3 {[%emt 0:00:07]} Qh5 {[%emt 0:00:01]} 14. Bc4 {[%emt 0:06:06]} Na5 {[%emt 0:02:06]} 15. Ba2 {[%emt 0:00:31]} Rac8 {[%emt 0:06:24]} 16. Rd2 {[%emt 0:10:16]} Bxf3 {[%emt 0:02:56]} 17. Qxf3 {[%emt 0:00:12]} Qxf3 {[%emt 0:00:07]} 18. gxf3 {[%emt 0:00:06]} Bxa3 {[%emt 0:14:44]} 19. Ne4 {[%emt 0:02:55]} Be7 {[%emt 0:04:05]} 20. Nxf6+ {[%emt 0:00:53]} Bxf6 {[%emt 0:00:05]} 21. Rad1 {[%emt 0:02:33]} Nc6 {[%emt 0:09:35]} 22. d5 {[%emt 0:01:14]} Nb4 {[%emt 0:00:49]} 23. Bb3 {[%emt 0:01:33]} Nxd5 {[%emt 0:00:23]} 24. Bxd5 {[%emt 0:00:05]} Rxd5 {[%emt 0:00:45]} 25. Rxd5 {[%emt 0:00:05]} exd5 {[%emt 0:00:02]} 26. Rxd5 {[%emt 0:03:01]} Bxb2 {[%emt 0:00:59]} 27. Rd2 {[%emt 0:00:04]} Bc1 {[%emt 0:01:59]} 0-1

[Event "17th Memorial Lezcano Montalvo 2025"]
[Site "Gran Canaria"]
[Date "2025.04.13"]
[Round "2.4"]
[White "Petriashvili, Nikoloz"]
[Black "Halldorsson, Halldor"]
[Result "1-0"]
[Annotator "ChessBase"]
[ECO "A05"]
[WhiteElo "2459"]
[BlackElo "2103"]
[PlyCount "63"]
[EventDate "2025.04.13"]
[EventType "swiss"]
[EventCountry "ESP"]
[SourceTitle "playchess.com"]
[Source "ChessBase"]
[SourceQuality "1"]
[TimeControl "5400+30"]

1. Nf3 {[%emt 0:00:14]} Nf6 {[%emt 0:00:36]} 2. g3 {[%emt 0:00:37]} g6 {[%emt 0:00:36]} 3. b3 {[%emt 0:00:45]} Bg7 {[%emt 0:00:51]} 4. Bb2 {[%emt 0:00:03]} O-O {[%emt 0:00:35]} 5. Bg2 {[%emt 0:00:04]} d5 {[%emt 0:00:59]} 6. c4 {[%emt 0:00:03]} c5 {[%emt 0:04:55]} 7. cxd5 {[%emt 0:00:38]} Qxd5 {[%emt 0:00:10]} 8. Nc3 {[%emt 0:00:31]} Qd8 {[%emt 0:01:25]} 9. Rc1 {[%emt 0:00:57]} Nbd7 {[%emt 0:06:16]} 10. Na4 {[%emt 0:00:59]} Qa5 {[%emt 0:02:01]} 11. O-O {[%emt 0:00:07]} Rb8 {[%emt 0:02:58]} 12. Ne5 {[%emt 0:02:24]} c4 {[%emt 0:06:54]} 13. Bc3 {[%emt 0:08:43]} Qc7 {[%emt 0:05:59]} 14. Nxc4 {[%emt 0:00:20]} Qd8 {[%emt 0:04:43]} 15. Ne5 {[%emt 0:00:40]} Ne8 {[%emt 0:03:27]} 16. Nxd7 {[%emt 0:02:34]} Bxd7 {[%emt 0:00:15]} 17. Nc5 {[%emt 0:01:21]} Bc8 {[%emt 0:00:21]} 18. Bxg7 {[%emt 0:01:25]} Nxg7 {[%emt 0:00:19]} 19. d4 {[%emt 0:00:28]} b6 {[%emt 0:01:52]} 20. Ne4 {[%emt 0:00:17]} Bb7 {[%emt 0:01:07]} 21. e3 {[%emt 0:00:06]} Nf5 {[%emt 0:02:07]} 22. Qe2 {[%emt 0:03:51]} Rc8 {[%emt 0:02:22]} 23. Nf6+ {[%emt 0:00:32]} exf6 {[%emt 0:00:21]} 24. Bxb7 {[%emt 0:00:02]} Rc7 {[%emt 0:00:38]} 25. Bf3 {[%emt 0:02:23]} h5 {[%emt 0:01:33]} 26. Qd2 {[%emt 0:00:02]} Rxc1 {[%emt 0:01:58]} 27. Rxc1 {[%emt 0:00:02]} Qd6 {[%emt 0:00:08]} 28. Rc6 {[%emt 0:01:09]} Qa3 {[%emt 0:03:05]} 29. Rxf6 {[%emt 0:02:32]} Ne7 {[%emt 0:00:12]} 30. d5 {[%emt 0:01:01]} Rd8 {[%emt 0:02:17]} 31. d6 {[%emt 0:00:59]} Nf5 {[%emt 0:01:03]} 32. Qd5 {[%emt 0:02:35]} 1-0

[Event "17th Memorial Lezcano Montalvo 2025"]
[Site "Gran Canaria"]
[Date "2025.04.13"]
[Round "2.5"]
[White "Blanco Garcia Bajo, David"]
[Black "Maerevoet, Sim"]
[Result "1-0"]
[Annotator "ChessBase"]
[ECO "B26"]
[WhiteElo "2098"]
[BlackElo "2451"]
[PlyCount "93"]
[EventDate "2025.04.13"]
[EventType "swiss"]
[EventCountry "ESP"]
[SourceTitle "playchess.com"]
[Source "ChessBase"]
[SourceQuality "1"]
[TimeControl "5400+30"]

1. e4 {[%emt 0:00:03]} c5 {[%emt 0:00:13]} 2. Nc3 {[%emt 0:00:07]} Nc6 {[%emt 0:00:29]} 3. g3 {[%emt 0:00:09]} g6 {[%emt 0:00:22]} 4. Bg2 {[%emt 0:00:10]} Bg7 {[%emt 0:00:08]} 5. d3 {[%emt 0:00:06]} d6 {[%emt 0:02:20]} 6. Be3 {[%emt 0:00:11]} Rb8 {[%emt 0:00:25]} 7. Qd2 {[%emt 0:00:33]} b5 {[%emt 0:03:01]} 8. Nge2 {[%emt 0:00:43]} b4 {[%emt 0:03:02]} 9. Nd1 {[%emt 0:00:19]} a5 {[%emt 0:06:32]} 10. O-O {[%emt 0:04:48]} h5 {[%emt 0:02:49]} 11. h3 {[%emt 0:00:08]} e6 {[%emt 0:01:52]} 12. a3 {[%emt 0:08:50]} Nd4 {[%emt 0:09:27]} 13. axb4 {[%emt 0:04:32]} axb4 {[%emt 0:01:31]} 14. Bxd4 {[%emt 0:13:18]} cxd4 {[%emt 0:00:33]} 15. b3 {[%emt 0:00:08]} Ne7 {[%emt 0:03:37]} 16. f4 {[%emt 0:05:33]} Qb6 {[%emt 0:04:37]} 17. Nb2 {[%emt 0:05:46]} d5 {[%emt 0:03:02]} 18. Kh1 {[%emt 0:09:47]} Bb7 {[%emt 0:05:07]} 19. Qe1 {[%emt 0:11:53]} O-O {[%emt 0:08:21]} 20. Qf2 {[%emt 0:05:08]} Rfc8 {[%emt 0:05:12]} 21. Na4 {[%emt 0:00:55]} Qa7 {[%emt 0:06:27]} 22. Ra2 {[%emt 0:00:28]} dxe4 {[%emt 0:01:42]} 23. dxe4 {[%emt 0:00:25]} Ba6 {[%emt 0:04:32]} 24. Rd1 {[%emt 0:03:37]} Bxe2 {[%emt 0:07:14]} 25. Qxe2 {[%emt 0:00:27]} Qc7 {[%emt 0:00:55]} 26. Rd2 {[%emt 0:04:12]} h4 {[%emt 0:00:38]} 27. Qg4 {[%emt 0:02:51]} hxg3 {[%emt 0:00:29]} 28. Qxg3 {[%emt 0:00:04]} Bh6 {[%emt 0:04:12]} 29. Rf2 {[%emt 0:03:14]} Kh7 {[%emt 0:00:30]} 30. Nb2 {[%emt 0:00:53]} Ra8 {[%emt 0:03:55]} 31. Rxa8 {[%emt 0:01:09]} Rxa8 {[%emt 0:00:02]} 32. Nd3 {[%emt 0:01:08]} Qc3 {[%emt 0:01:48]} 33. Qh4 {[%emt 0:01:46]} Ng8 {[%emt 0:00:33]} 34. f5 {[%emt 0:01:17]} Ra1+ {[%emt 0:01:37]} 35. Bf1 {[%emt 0:02:03]} exf5 {[%emt 0:01:24]} 36. exf5 {[%emt 0:00:01]} g5 {[%emt 0:01:43]} 37. Qe4 {[%emt 0:00:24]} Kg7 {[%emt 0:01:37]} 38. Qe5+ {[%emt 0:03:03]} Nf6 {[%emt 0:00:25]} 39. Kh2 {[%emt 0:00:52]} Ra2 {[%emt 0:01:47]} 40. Nf4 {[%emt 0:00:49]} gxf4 {[%emt 0:04:48]} 41. Rg2+ {[%emt 0:00:00]} Kh7 {[%emt 0:00:23]} 42. Qxf6 {[%emt 0:00:12]} Qc7 {[%emt 0:00:06]} 43. Kh1 {[%emt 0:05:49]} Ra1 {[%emt 0:00:26]} 44. Rg1 {[%emt 0:02:27]} Qb7+ {[%emt 0:01:49]} 45. Kh2 {[%emt 0:00:15]} Rd1 {[%emt 0:00:34]} 46. Rg6 {[%emt 0:01:23]} fxg6 {[%emt 0:00:39]} 47. fxg6+ {[%emt 0:00:11]} 1-0

[Event "17th Memorial Lezcano Montalvo 2025"]
[Site "Gran Canaria"]
[Date "2025.04.13"]
[Round "2.6"]
[White "Larino Nieto, David"]
[Black "Hu, Jiani"]
[Result "1-0"]
[Annotator "ChessBase"]
[ECO "A00"]
[WhiteElo "2448"]
[BlackElo "2091"]
[PlyCount "69"]
[EventDate "2025.04.13"]
[EventType "swiss"]
[EventCountry "ESP"]
[SourceTitle "playchess.com"]
[Source "ChessBase"]
[SourceQuality "1"]
[TimeControl "5400+30"]

1. d3 {[%emt 0:00:03]} d5 {[%emt 0:00:49]} 2. Nd2 {[%emt 0:00:19]} Nf6 {[%emt 0:00:26]} 3. b3 {[%emt 0:00:17]} e5 {[%emt 0:02:46]} 4. Bb2 {[%emt 0:00:24]} Bd6 {[%emt 0:00:19]} 5. e4 {[%emt 0:00:23]} c6 {[%emt 0:01:29]} 6. Ngf3 {[%emt 0:10:47]} Qe7 {[%emt 0:05:11]} 7. a3 {[%emt 0:00:30]} Nbd7 {[%emt 0:01:49]} 8. Nh4 {[%emt 0:01:33]} Nc5 {[%emt 0:01:43]} 9. exd5 {[%emt 0:09:15]} cxd5 {[%emt 0:01:40]} 10. g3 {[%emt 0:05:23]} O-O {[%emt 0:01:37]} 11. Bg2 {[%emt 0:02:24]} Bg4 {[%emt 0:01:58]} 12. Bf3 {[%emt 0:00:14]} Bh3 {[%emt 0:02:56]} 13. g4 {[%emt 0:08:54]} e4 {[%emt 0:26:48]} 14. Nf5 {[%emt 0:00:50]} Qe6 {[%emt 0:04:00]} 15. dxe4 {[%emt 0:01:51]} dxe4 {[%emt 0:09:26]} 16. Be2 {[%emt 0:00:39]} b5 {[%emt 0:07:59]} 17. Nxd6 {[%emt 0:09:13]} Qxd6 {[%emt 0:00:29]} 18. Nf1 {[%emt 0:00:25]} Qc6 {[%emt 0:04:31]} 19. Ne3 {[%emt 0:07:54]} Rad8 {[%emt 0:01:37]} 20. Qc1 {[%emt 0:00:17]} Qe6 {[%emt 0:06:29]} 21. Bxb5 {[%emt 0:11:09]} Nxg4 {[%emt 0:01:43]} 22. Bc4 {[%emt 0:01:25]} Qd7 {[%emt 0:03:28]} 23. Rg1 {[%emt 0:01:02]} g6 {[%emt 0:09:29]} 24. Nd5 {[%emt 0:01:09]} Qb7 {[%emt 0:02:01]} 25. Rxg4 {[%emt 0:00:32]} Rxd5 {[%emt 0:00:22]} 26. Qh6 {[%emt 0:00:18]} Ne6 {[%emt 0:00:55]} 27. Qxh3 {[%emt 0:00:47]} Rf5 {[%emt 0:00:54]} 28. Bxe6 {[%emt 0:00:56]} fxe6 {[%emt 0:00:12]} 29. Rxg6+ {[%emt 0:00:04]} hxg6 {[%emt 0:00:25]} 30. Qh8+ {[%emt 0:00:02]} Kf7 {[%emt 0:00:10]} 31. Qg7+ {[%emt 0:00:02]} Ke8 {[%emt 0:00:09]} 32. Qxb7 {[%emt 0:00:03]} Rxf2 {[%emt 0:01:08]} 33. O-O-O {[%emt 0:00:04]} R2f7 {[%emt 0:00:48]} 34. Qc8+ {[%emt 0:00:02]} Ke7 {[%emt 0:00:17]} 35. Qd7# {[%emt 0:28:50]} 1-0

[Event "17th Memorial Lezcano Montalvo 2025"]
[Site "Gran Canaria"]
[Date "2025.04.13"]
[Round "2.7"]
[White "Cruz Ramirez, Nauzet"]
[Black "Pap, Misa"]
[Result "0-1"]
[Annotator "ChessBase"]
[ECO "A57"]
[WhiteElo "2076"]
[BlackElo "2444"]
[PlyCount "92"]
[EventDate "2025.04.13"]
[EventType "swiss"]
[EventCountry "ESP"]
[SourceTitle "playchess.com"]
[Source "ChessBase"]
[SourceQuality "1"]
[TimeControl "5400+30"]

1. d4 {[%emt 0:00:04]} Nf6 {[%emt 0:00:21]} 2. c4 {[%emt 0:00:04]} c5 {[%emt 0:02:27]} 3. d5 {[%emt 0:00:05]} b5 {[%emt 0:00:50]} 4. cxb5 {[%emt 0:00:06]} a6 {[%emt 0:00:03]} 5. f3 {[%emt 0:00:05]} axb5 {[%emt 0:00:44]} 6. e4 {[%emt 0:00:05]} Qa5+ {[%emt 0:00:07]} 7. Bd2 {[%emt 0:00:05]} b4 {[%emt 0:00:07]} 8. Na3 {[%emt 0:00:05]} d6 {[%emt 0:00:04]} 9. Nc4 {[%emt 0:00:05]} Qd8 {[%emt 0:00:35]} 10. a4 {[%emt 0:00:06]} e6 {[%emt 0:00:41]} 11. Bg5 {[%emt 0:00:26]} h6 {[%emt 0:17:12]} 12. Bxf6 {[%emt 0:01:06]} gxf6 {[%emt 0:00:02]} 13. Ne3 {[%emt 0:12:05]} h5 {[%emt 0:05:17]} 14. Bb5+ {[%emt 0:01:02]} Ke7 {[%emt 0:00:01]} 15. Ne2 {[%emt 0:05:04]} Bh6 {[%emt 0:02:44]} 16. Qb3 {[%emt 0:03:48]} Ba6 {[%emt 0:04:05]} 17. Bxa6 {[%emt 0:09:21]} Rxa6 {[%emt 0:00:05]} 18. O-O {[%emt 0:00:33]} Bxe3+ {[%emt 0:01:07]} 19. Qxe3 {[%emt 0:00:12]} Nd7 {[%emt 0:00:10]} 20. Kh1 {[%emt 0:06:13]} h4 {[%emt 0:03:20]} 21. f4 {[%emt 0:01:11]} h3 {[%emt 0:00:36]} 22. b3 {[%emt 0:19:54]} hxg2+ {[%emt 0:06:22]} 23. Kxg2 {[%emt 0:00:27]} Qg8+ {[%emt 0:00:43]} 24. Kh1 {[%emt 0:00:32]} Qh7 {[%emt 0:04:52]} 25. Rf2 {[%emt 0:01:49]} f5 {[%emt 0:16:44]} 26. Ng3 {[%emt 0:23:11]} Nf6 {[%emt 0:02:01]} 27. Qe2 {[%emt 0:00:04]} Raa8 {[%emt 0:08:50]} 28. exf5 {[%emt 0:02:58]} Rag8 {[%emt 0:05:08]} 29. Rg2 {[%emt 0:08:50]} Nxd5 {[%emt 0:00:58]} 30. Rf1 {[%emt 0:00:41]} Nc3 {[%emt 0:03:53]} 31. Qf3 {[%emt 0:01:20]} Rxg3 {[%emt 0:00:39]} 32. Qxg3 {[%emt 0:00:17]} Qxf5 {[%emt 0:00:08]} 33. Qg5+ {[%emt 0:01:44]} Qf6 {[%emt 0:00:19]} 34. Re1 {[%emt 0:01:47]} Rh3 {[%emt 0:02:21]} 35. Qxf6+ {[%emt 0:01:22]} Kxf6 {[%emt 0:00:10]} 36. Rg3 {[%emt 0:00:01]} Rh4 {[%emt 0:00:59]} 37. Kg2 {[%emt 0:01:10]} d5 {[%emt 0:00:06]} 38. a5 {[%emt 0:00:46]} Rh8 {[%emt 0:00:35]} 39. Ra1 {[%emt 0:00:44]} Ne2 {[%emt 0:00:44]} 40. Rf3 {[%emt 0:00:31]} Nd4 {[%emt 0:00:06]} 41. Rg3 {[%emt 0:00:15]} c4 {[%emt 0:02:17]} 42. bxc4 {[%emt 0:00:21]} dxc4 {[%emt 0:00:01]} 43. a6 {[%emt 0:00:25]} c3 {[%emt 0:00:48]} 44. Rd3 {[%emt 0:00:57]} Nb3 {[%emt 0:00:23]} 45. Rb1 {[%emt 0:00:04]} Nc5 {[%emt 0:00:21]} 46. Rd4 {[%emt 0:00:58]} c2 {[%emt 0:00:25]} 0-1